[Event "Titled Tuesday Blitz April 18 Late 2023"]
[White "reevecanada"]
[Black "Bogaudinov, Rushan"]
[BlackFideId "4129288"]
[WhiteElo "2455"]
[BlackElo "1967"]
[Result "1-0"]
[Round "08"]
[TimeControl "180+2"]
[Date "2023.04.18"]
[WhiteClock "0:01:47"]
[BlackClock "0:00:52"]

1. g3 {[%clk 0:02:58]}  h5 {[%clk 0:02:59]} 2. Nf3 {[%clk 0:02:57]}  e6 {[%clk 0:02:58]} 3. Bg2 {[%clk 0:02:57]}  Be7 {[%clk 0:02:59]} 4. h4 {[%clk 0:02:56]}  Nf6 {[%clk 0:02:58]} 5. d4 {[%clk 0:02:56]}  b6 {[%clk 0:02:57]} 6. c4 {[%clk 0:02:56]}  Bb7 {[%clk 0:02:57]} 7. Nc3 {[%clk 0:02:56]}  d5 {[%clk 0:02:54]} 8. b3 {[%clk 0:02:55]}  c5 {[%clk 0:02:52]} 9. Bb2 {[%clk 0:02:54]}  dxc4 {[%clk 0:02:52]} 10. bxc4 {[%clk 0:02:42]}  cxd4 {[%clk 0:02:52]} 11. Nb5 {[%clk 0:02:39]}  Bb4+ {[%clk 0:02:50]} 12. Kf1 {[%clk 0:02:37]}  Bc5 {[%clk 0:02:48]} 13. Bxd4 {[%clk 0:02:35]}  Bxd4 {[%clk 0:02:47]} 14. Nfxd4 {[%clk 0:02:34]}  Bxg2+ {[%clk 0:02:45]} 15. Kxg2 {[%clk 0:02:33]}  a6 {[%clk 0:02:39]} 16. Nc3 {[%clk 0:02:32]}  Qc7 {[%clk 0:02:36]} 17. Qb3 {[%clk 0:02:30]}  Nbd7 {[%clk 0:02:34]} 18. e4 {[%clk 0:02:26]}  Rc8 {[%clk 0:02:28]} 19. Rac1 {[%clk 0:02:25]}  Qxc4 {[%clk 0:02:22]} 20. Nd5 {[%clk 0:02:20]}  Qxc1 {[%clk 0:02:02]} 21. Nxf6+ {[%clk 0:02:19]}  gxf6 {[%clk 0:02:00]} 22. Rxc1 {[%clk 0:02:17]}  Rxc1 {[%clk 0:02:00]} 23. Qa3 {[%clk 0:02:17]}  Rc4 {[%clk 0:01:24]} 24. Qxa6 {[%clk 0:02:14]}  Rxd4 {[%clk 0:01:17]} 25. Qc8+ {[%clk 0:02:13]}  Ke7 {[%clk 0:01:17]} 26. Qxh8 {[%clk 0:02:12]}  Rxe4 {[%clk 0:01:16]} 27. Qxh5 {[%clk 0:02:12]}  Re5 {[%clk 0:01:10]} 28. Qd1 {[%clk 0:02:09]}  Ra5 {[%clk 0:01:05]} 29. Qb1 {[%clk 0:02:06]}  f5 {[%clk 0:01:03]} 30. Qb4+ {[%clk 0:02:04]}  Kf6 {[%clk 0:01:00]} 31. h5 {[%clk 0:01:59]}  Rd5 {[%clk 0:00:57]} 32. Qh4+ {[%clk 0:01:50]}  Kg7 {[%clk 0:00:56]} 33. h6+ {[%clk 0:01:48]}  Kh7 {[%clk 0:00:52]} 34. Qg5 {[%clk 0:01:47]} 1-0


[Site "https://www.chess.com"]

[Event "Titled Tuesday Blitz April 18 Late 2023"]
[White "Ward, Ieuan C"]
[Black "Kovalevsky, Stanislav"]
[WhiteFideId "406627"]
[BlackFideId "13508598"]
[WhiteElo "2328"]
[BlackElo "2174"]
[Result "1-0"]
[Round "08"]
[TimeControl "180+2"]
[Date "2023.04.18"]
[WhiteClock "0:00:16"]
[BlackClock "0:00:13"]

1. d4 {[%clk 0:03:00]}  d5 {[%clk 0:02:59]} 2. c4 {[%clk 0:03:00]}  c6 {[%clk 0:03:00]} 3. Nf3 {[%clk 0:03:00]}  Nf6 {[%clk 0:03:00]} 4. Nc3 {[%clk 0:03:00]}  Nbd7 {[%clk 0:03:00]} 5. e3 {[%clk 0:02:58]}  e6 {[%clk 0:02:59]} 6. Bd3 {[%clk 0:02:58]}  Bd6 {[%clk 0:03:00]} 7. O-O {[%clk 0:02:58]}  O-O {[%clk 0:03:00]} 8. b3 {[%clk 0:02:58]}  Re8 {[%clk 0:02:56]} 9. Bb2 {[%clk 0:02:57]}  dxc4 {[%clk 0:02:57]} 10. bxc4 {[%clk 0:02:57]}  e5 {[%clk 0:02:58]} 11. Qc2 {[%clk 0:02:53]}  Qe7 {[%clk 0:02:49]} 12. Nd2 {[%clk 0:02:32]}  a6 {[%clk 0:02:12]} 13. Rad1 {[%clk 0:02:20]}  h6 {[%clk 0:02:11]} 14. h3 {[%clk 0:02:18]}  b5 {[%clk 0:01:57]} 15. Nce4 {[%clk 0:01:50]}  Bb8 {[%clk 0:01:46]} 16. c5 {[%clk 0:01:32]}  Nxe4 {[%clk 0:01:37]} 17. Bxe4 {[%clk 0:01:33]}  Bb7 {[%clk 0:01:30]} 18. Bf3 {[%clk 0:01:28]}  Qe6 {[%clk 0:01:05]} 19. Nb3 {[%clk 0:01:20]}  e4 {[%clk 0:01:00]} 20. Bg4 {[%clk 0:01:19]}  f5 {[%clk 0:00:59]} 21. Bh5 {[%clk 0:01:18]}  g6 {[%clk 0:00:59]} 22. Be2 {[%clk 0:01:18]}  Nf6 {[%clk 0:00:57]} 23. Na5 {[%clk 0:01:16]}  Bc8 {[%clk 0:00:52]} 24. a4 {[%clk 0:00:37]}  Nd5 {[%clk 0:00:47]} 25. Ra1 {[%clk 0:00:30]}  Bc7 {[%clk 0:00:45]} 26. Qd2 {[%clk 0:00:26]}  f4 {[%clk 0:00:28]} 27. Bg4 {[%clk 0:00:20]}  Qf6 {[%clk 0:00:26]} 28. Bxc8 {[%clk 0:00:17]}  Rexc8 {[%clk 0:00:25]} 29. exf4 {[%clk 0:00:17]}  Bxf4 {[%clk 0:00:22]} 30. Qe2 {[%clk 0:00:17]}  Bc7 {[%clk 0:00:17]} 31. Nb7 {[%clk 0:00:16]}  Rab8 {[%clk 0:00:15]} 32. Nd6 {[%clk 0:00:15]}  Bxd6 {[%clk 0:00:15]} 33. cxd6 {[%clk 0:00:16]}  Qxd6 {[%clk 0:00:15]} 34. Qxe4 {[%clk 0:00:16]}  Re8 {[%clk 0:00:15]} 35. Qd3 {[%clk 0:00:14]}  Kh7 {[%clk 0:00:13]} 36. axb5 {[%clk 0:00:13]}  cxb5 {[%clk 0:00:12]} 37. Bc1 {[%clk 0:00:11]}  Rbc8 {[%clk 0:00:11]} 38. Bd2 {[%clk 0:00:10]}  Rc6 {[%clk 0:00:10]} 39. Rae1 {[%clk 0:00:09]}  Rxe1 {[%clk 0:00:10]} 40. Rxe1 {[%clk 0:00:10]}  Qf6 {[%clk 0:00:10]} 41. Qe4 {[%clk 0:00:10]}  Nc3 {[%clk 0:00:06]} 42. Qe7+ {[%clk 0:00:09]}  Qxe7 {[%clk 0:00:06]} 43. Rxe7+ {[%clk 0:00:10]}  Kg8 {[%clk 0:00:07]} 44. Bxh6 {[%clk 0:00:10]}  Nd5 {[%clk 0:00:05]} 45. Ra7 {[%clk 0:00:10]}  Nf6 {[%clk 0:00:04]} 46. Bg5 {[%clk 0:00:10]}  Ne4 {[%clk 0:00:04]} 47. Bd8 {[%clk 0:00:10]}  Rd6 {[%clk 0:00:03]} 48. Bc7 {[%clk 0:00:10]}  Rxd4 {[%clk 0:00:03]} 49. Rxa6 {[%clk 0:00:11]}  b4 {[%clk 0:00:04]} 50. Ra8+ {[%clk 0:00:10]}  Kf7 {[%clk 0:00:04]} 51. Rb8 {[%clk 0:00:10]}  Rc4 {[%clk 0:00:04]} 52. Ba5 {[%clk 0:00:10]}  Rc1+ {[%clk 0:00:04]} 53. Kh2 {[%clk 0:00:10]}  Nxf2 {[%clk 0:00:04]} 54. Bxb4 {[%clk 0:00:10]}  Rb1 {[%clk 0:00:04]} 55. Bd6 {[%clk 0:00:09]}  Ne4 {[%clk 0:00:04]} 56. Rxb1 {[%clk 0:00:08]}  Nxd6 {[%clk 0:00:04]} 57. Rf1+ {[%clk 0:00:09]}  Nf5 {[%clk 0:00:05]} 58. g4 {[%clk 0:00:09]}  Ke6 {[%clk 0:00:06]} 59. gxf5+ {[%clk 0:00:09]}  gxf5 {[%clk 0:00:06]} 60. Kg3 {[%clk 0:00:10]}  Ke5 {[%clk 0:00:07]} 61. Kf3 {[%clk 0:00:10]}  f4 {[%clk 0:00:07]} 62. Re1+ {[%clk 0:00:10]}  Kf5 {[%clk 0:00:08]} 63. Re4 {[%clk 0:00:11]}  Kg5 {[%clk 0:00:09]} 64. Rxf4 {[%clk 0:00:12]}  Kh5 {[%clk 0:00:08]} 65. Rg4 {[%clk 0:00:13]}  Kh6 {[%clk 0:00:09]} 66. Kf4 {[%clk 0:00:13]}  Kh7 {[%clk 0:00:09]} 67. Kf5 {[%clk 0:00:14]}  Kh6 {[%clk 0:00:10]} 68. Kf6 {[%clk 0:00:14]}  Kh5 {[%clk 0:00:11]} 69. Kf5 {[%clk 0:00:14]}  Kh6 {[%clk 0:00:11]} 70. Rh4+ {[%clk 0:00:14]}  Kg7 {[%clk 0:00:11]} 71. Kg4 {[%clk 0:00:15]}  Kg6 {[%clk 0:00:11]} 72. Rh5 {[%clk 0:00:16]}  Kg7 {[%clk 0:00:12]} 73. h4 {[%clk 0:00:16]}  Kg6 {[%clk 0:00:13]} 74. Rg5+ {[%clk 0:00:16]}  Kf6 {[%clk 0:00:13]} 75. h5 {[%clk 0:00:16]} 1-0


[Site "https://www.chess.com"]

[Event "Titled Tuesday Blitz April 18 Late 2023"]
[White "Shubenkova, Veronika"]
[Black "Wang, Alexander J"]
[WhiteFideId "44124040"]
[BlackFideId "30955270"]
[WhiteElo "2027"]
[BlackElo "2308"]
[Result "0-1"]
[Round "08"]
[TimeControl "180+2"]
[Date "2023.04.18"]
[WhiteClock "0:00:37"]
[BlackClock "0:00:14"]

1. e4 {[%clk 0:03:00]}  c5 {[%clk 0:02:59]} 2. Nc3 {[%clk 0:03:00]}  d6 {[%clk 0:03:00]} 3. g3 {[%clk 0:03:00]}  Nf6 {[%clk 0:03:00]} 4. Bg2 {[%clk 0:03:00]}  g6 {[%clk 0:03:01]} 5. d3 {[%clk 0:03:00]}  Bg7 {[%clk 0:03:01]} 6. f4 {[%clk 0:03:00]}  O-O {[%clk 0:03:01]} 7. Nf3 {[%clk 0:02:59]}  Nc6 {[%clk 0:03:01]} 8. O-O {[%clk 0:02:59]}  a6 {[%clk 0:02:42]} 9. h3 {[%clk 0:02:59]}  Nd7 {[%clk 0:02:39]} 10. Ne2 {[%clk 0:02:56]}  b5 {[%clk 0:02:38]} 11. g4 {[%clk 0:02:56]}  Bb7 {[%clk 0:02:27]} 12. f5 {[%clk 0:02:54]}  Nde5 {[%clk 0:02:10]} 13. Rb1 {[%clk 0:02:50]}  Nxf3+ {[%clk 0:02:09]} 14. Bxf3 {[%clk 0:02:49]}  Ne5 {[%clk 0:02:09]} 15. Bg2 {[%clk 0:02:49]}  d5 {[%clk 0:02:00]} 16. fxg6 {[%clk 0:02:46]}  hxg6 {[%clk 0:01:55]} 17. Ng3 {[%clk 0:02:46]}  dxe4 {[%clk 0:01:37]} 18. Nxe4 {[%clk 0:02:43]}  c4 {[%clk 0:01:34]} 19. Bf4 {[%clk 0:02:40]}  cxd3 {[%clk 0:01:30]} 20. Bxe5 {[%clk 0:02:37]}  dxc2 {[%clk 0:01:19]} 21. Qxc2 {[%clk 0:02:35]}  Bxe5 {[%clk 0:01:18]} 22. Rbd1 {[%clk 0:02:34]}  Qb6+ {[%clk 0:01:16]} 23. Kh1 {[%clk 0:02:34]}  Rac8 {[%clk 0:01:13]} 24. Qb3 {[%clk 0:02:33]}  Bb8 {[%clk 0:01:05]} 25. h4 {[%clk 0:02:33]}  Qc7 {[%clk 0:01:00]} 26. Qh3 {[%clk 0:02:32]}  Qe5 {[%clk 0:00:52]} 27. Rde1 {[%clk 0:02:28]}  Qxb2 {[%clk 0:00:36]} 28. h5 {[%clk 0:02:24]}  Rc2 {[%clk 0:00:29]} 29. hxg6 {[%clk 0:02:21]}  fxg6 {[%clk 0:00:28]} 30. Rxf8+ {[%clk 0:02:19]}  Kxf8 {[%clk 0:00:29]} 31. Qh6+ {[%clk 0:02:18]}  Kf7 {[%clk 0:00:25]} 32. Rf1+ {[%clk 0:02:10]}  Ke8 {[%clk 0:00:22]} 33. Qxg6+ {[%clk 0:01:59]}  Kd7 {[%clk 0:00:21]} 34. Rd1+ {[%clk 0:01:51]}  Kc7 {[%clk 0:00:20]} 35. Rg1 {[%clk 0:01:09]}  Ba7 {[%clk 0:00:15]} 36. Qf7 {[%clk 0:00:41]}  Qh8+ {[%clk 0:00:12]} 37. Qh5 {[%clk 0:00:38]}  Qxh5+ {[%clk 0:00:12]} 38. gxh5 {[%clk 0:00:38]}  Bxg1 {[%clk 0:00:13]} 39. Kxg1 {[%clk 0:00:37]}  Rxg2+ {[%clk 0:00:13]} 40. Kxg2 {[%clk 0:00:37]}  Bxe4+ {[%clk 0:00:14]} 0-1


[Site "https://www.chess.com"]

[Event "Titled Tuesday Blitz April 18 Late 2023"]
[White "Sarkar, Justin"]
[Black "Mazurkiewicz, Michal"]
[WhiteFideId "2010011"]
[BlackFideId "1124943"]
[WhiteElo "2189"]
[BlackElo "2054"]
[Result "0-1"]
[Round "08"]
[TimeControl "180+2"]
[Date "2023.04.18"]
[WhiteClock "0:00:01"]
[BlackClock "0:01:41"]

1. e4 {[%clk 0:02:35]}  d6 {[%clk 0:02:59]} 2. d4 {[%clk 0:02:32]}  Nf6 {[%clk 0:02:58]} 3. Nc3 {[%clk 0:02:32]}  c6 {[%clk 0:02:59]} 4. a4 {[%clk 0:02:27]}  Qa5 {[%clk 0:02:58]} 5. Bd2 {[%clk 0:02:23]}  Qb6 {[%clk 0:02:58]} 6. Nf3 {[%clk 0:02:13]}  Bg4 {[%clk 0:02:58]} 7. a5 {[%clk 0:02:08]}  Qc7 {[%clk 0:02:58]} 8. h3 {[%clk 0:02:03]}  Bh5 {[%clk 0:02:56]} 9. Qe2 {[%clk 0:01:48]}  e5 {[%clk 0:02:52]} 10. g4 {[%clk 0:01:25]}  Bg6 {[%clk 0:02:49]} 11. Bg2 {[%clk 0:01:25]}  Nbd7 {[%clk 0:02:48]} 12. O-O {[%clk 0:01:18]}  Be7 {[%clk 0:02:48]} 13. Rfd1 {[%clk 0:01:05]}  O-O {[%clk 0:02:29]} 14. Be1 {[%clk 0:00:45]}  Rfe8 {[%clk 0:02:27]} 15. Nh4 {[%clk 0:00:40]}  Bf8 {[%clk 0:02:26]} 16. Nf5 {[%clk 0:00:31]}  Bxf5 {[%clk 0:02:22]} 17. gxf5 {[%clk 0:00:31]}  d5 {[%clk 0:02:08]} 18. dxe5 {[%clk 0:00:12]}  Qxe5 {[%clk 0:02:06]} 19. f3 {[%clk 0:00:06]}  Bc5+ {[%clk 0:01:54]} 20. Kh1 {[%clk 0:00:06]}  Bd6 {[%clk 0:01:54]} 21. Bf1 {[%clk 0:00:01]}  dxe4 {[%clk 0:01:51]} 22. fxe4 {[%clk 0:00:02]}  Nc5 {[%clk 0:01:49]} 23. Rxd6 {[%clk 0:00:01]}  Qxd6 {[%clk 0:01:47]} 24. Bg2 {[%clk 0:00:01]}  Qe5 {[%clk 0:01:43]} 25. Bf2 {[%clk 0:00:01]}  Ncxe4 {[%clk 0:01:41]} 26. Nxe4 {[%clk 0:00:01]}  Nxe4 {[%clk 0:01:41]} 0-1


[Site "https://www.chess.com"]

[Event "Titled Tuesday Blitz April 18 Late 2023"]
[White "Kohler, Aran"]
[Black "Prydun, Andriy"]
[WhiteFideId "1002856"]
[BlackFideId "14145898"]
[WhiteElo "2260"]
[BlackElo "2164"]
[Result "0-1"]
[Round "08"]
[TimeControl "180+2"]
[Date "2023.04.18"]
[WhiteClock "0:01:45"]
[BlackClock "0:01:46"]

1. d4 {[%clk 0:03:00]}  Nf6 {[%clk 0:02:56]} 2. Nf3 {[%clk 0:03:00]}  d5 {[%clk 0:02:55]} 3. Bg5 {[%clk 0:02:59]}  e6 {[%clk 0:02:48]} 4. Nbd2 {[%clk 0:02:58]}  Be7 {[%clk 0:02:47]} 5. c3 {[%clk 0:02:58]}  O-O {[%clk 0:02:46]} 6. Bxf6 {[%clk 0:02:58]}  Bxf6 {[%clk 0:02:45]} 7. e4 {[%clk 0:02:59]}  b6 {[%clk 0:02:28]} 8. e5 {[%clk 0:02:58]}  Be7 {[%clk 0:02:27]} 9. Bd3 {[%clk 0:02:58]}  Ba6 {[%clk 0:02:21]} 10. Bb1 {[%clk 0:02:56]}  c5 {[%clk 0:02:11]} 11. h4 {[%clk 0:02:52]}  Nc6 {[%clk 0:02:08]} 12. Qc2 {[%clk 0:02:33]}  g6 {[%clk 0:02:07]} 13. h5 {[%clk 0:02:34]}  cxd4 {[%clk 0:02:07]} 14. hxg6 {[%clk 0:02:31]}  fxg6 {[%clk 0:02:06]} 15. Nxd4 {[%clk 0:02:11]}  Nxd4 {[%clk 0:02:01]} 16. cxd4 {[%clk 0:02:11]}  Rc8 {[%clk 0:02:02]} 17. Qd1 {[%clk 0:02:11]}  Bh4 {[%clk 0:01:48]} 18. g3 {[%clk 0:02:08]}  Bxg3 {[%clk 0:01:47]} 19. fxg3 {[%clk 0:01:53]}  Qg5 {[%clk 0:01:47]} 20. Rh3 {[%clk 0:01:45]}  Qe3+ {[%clk 0:01:46]} 0-1


[Site "https://www.chess.com"]

[Event "Titled Tuesday Blitz April 18 Late 2023"]
[White "WindWhistler11"]
[Black "mjelcic"]
[WhiteElo "2427"]
[BlackElo "2194"]
[Result "1-0"]
[Round "08"]
[TimeControl "180+2"]
[Date "2023.04.18"]
[WhiteClock "0:00:13"]
[BlackClock "0:00:13"]

1. Nf3 {[%clk 0:02:54]}  Nf6 {[%clk 0:02:57]} 2. g3 {[%clk 0:02:52]}  g6 {[%clk 0:02:56]} 3. Bg2 {[%clk 0:02:48]}  Bg7 {[%clk 0:02:57]} 4. c4 {[%clk 0:02:44]}  c5 {[%clk 0:02:44]} 5. O-O {[%clk 0:02:44]}  O-O {[%clk 0:02:43]} 6. a3 {[%clk 0:02:41]}  Nc6 {[%clk 0:02:40]} 7. Nc3 {[%clk 0:02:35]}  d5 {[%clk 0:02:37]} 8. cxd5 {[%clk 0:02:33]}  Nxd5 {[%clk 0:02:37]} 9. d3 {[%clk 0:02:26]}  Nxc3 {[%clk 0:02:31]} 10. bxc3 {[%clk 0:02:27]}  Bxc3 {[%clk 0:02:30]} 11. Bh6 {[%clk 0:02:22]}  Bg7 {[%clk 0:02:25]} 12. Bxg7 {[%clk 0:02:08]}  Kxg7 {[%clk 0:02:25]} 13. Rc1 {[%clk 0:02:06]}  Qd6 {[%clk 0:02:21]} 14. Qc2 {[%clk 0:01:55]}  b6 {[%clk 0:02:21]} 15. d4 {[%clk 0:01:50]}  Bb7 {[%clk 0:01:44]} 16. dxc5 {[%clk 0:01:46]}  bxc5 {[%clk 0:01:44]} 17. Rfd1 {[%clk 0:01:42]}  Qf6 {[%clk 0:01:24]} 18. Qxc5 {[%clk 0:01:40]}  Rac8 {[%clk 0:01:22]} 19. Qb5 {[%clk 0:01:31]}  Ba8 {[%clk 0:01:19]} 20. Rc4 {[%clk 0:01:26]}  Rfd8 {[%clk 0:01:07]} 21. Rdc1 {[%clk 0:01:15]}  e6 {[%clk 0:00:58]} 22. h4 {[%clk 0:00:58]}  Rb8 {[%clk 0:00:46]} 23. Qa4 {[%clk 0:00:55]}  Ne5 {[%clk 0:00:40]} 24. Rf4 {[%clk 0:00:52]}  Nxf3+ {[%clk 0:00:37]} 25. Bxf3 {[%clk 0:00:47]}  Qe5 {[%clk 0:00:37]} 26. Qxa7 {[%clk 0:00:42]}  Bxf3 {[%clk 0:00:36]} 27. Rxf7+ {[%clk 0:00:42]}  Kg8 {[%clk 0:00:35]} 28. exf3 {[%clk 0:00:38]}  Ra8 {[%clk 0:00:33]} 29. Qe7 {[%clk 0:00:32]}  Re8 {[%clk 0:00:33]} 30. Qd7 {[%clk 0:00:20]}  Rad8 {[%clk 0:00:32]} 31. Qc7 {[%clk 0:00:21]}  Qxc7 {[%clk 0:00:14]} 32. Rcxc7 {[%clk 0:00:20]}  Rd3 {[%clk 0:00:13]} 33. Rg7+ {[%clk 0:00:18]}  Kf8 {[%clk 0:00:13]} 34. Rxh7 {[%clk 0:00:18]}  Kg8 {[%clk 0:00:13]} 35. Rcg7+ {[%clk 0:00:18]}  Kf8 {[%clk 0:00:13]} 36. Kg2 {[%clk 0:00:18]}  Rxa3 {[%clk 0:00:12]} 37. Rxg6 {[%clk 0:00:18]}  Rea8 {[%clk 0:00:09]} 38. Rh8+ {[%clk 0:00:17]}  Kf7 {[%clk 0:00:09]} 39. Rxa8 {[%clk 0:00:15]}  Rxa8 {[%clk 0:00:10]} 40. Rg4 {[%clk 0:00:14]}  Kf6 {[%clk 0:00:10]} 41. Rf4+ {[%clk 0:00:14]}  Ke5 {[%clk 0:00:10]} 42. Re4+ {[%clk 0:00:15]}  Kf6 {[%clk 0:00:10]} 43. g4 {[%clk 0:00:15]}  e5 {[%clk 0:00:10]} 44. Kg3 {[%clk 0:00:16]}  Ra3 {[%clk 0:00:09]} 45. h5 {[%clk 0:00:14]}  Ra1 {[%clk 0:00:09]} 46. Kg2 {[%clk 0:00:13]}  Ra3 {[%clk 0:00:08]} 47. f4 {[%clk 0:00:13]}  exf4 {[%clk 0:00:06]} 48. Rxf4+ {[%clk 0:00:14]}  Kg5 {[%clk 0:00:07]} 49. Rd4 {[%clk 0:00:14]}  Rb3 {[%clk 0:00:06]} 50. f3 {[%clk 0:00:07]}  Rb2+ {[%clk 0:00:06]} 51. Kg3 {[%clk 0:00:07]}  Rb1 {[%clk 0:00:07]} 52. f4+ {[%clk 0:00:07]}  Kf6 {[%clk 0:00:07]} 53. Rd6+ {[%clk 0:00:08]}  Kg7 {[%clk 0:00:07]} 54. Rg6+ {[%clk 0:00:08]}  Kh7 {[%clk 0:00:07]} 55. Kh4 {[%clk 0:00:09]}  Rh1+ {[%clk 0:00:06]} 56. Kg5 {[%clk 0:00:09]}  Ra1 {[%clk 0:00:06]} 57. f5 {[%clk 0:00:10]}  Ra7 {[%clk 0:00:06]} 58. Re6 {[%clk 0:00:10]}  Rg7+ {[%clk 0:00:06]} 59. Kf4 {[%clk 0:00:10]}  Ra7 {[%clk 0:00:06]} 60. g5 {[%clk 0:00:10]}  Ra4+ {[%clk 0:00:07]} 61. Ke5 {[%clk 0:00:11]}  Ra5+ {[%clk 0:00:07]} 62. Kf6 {[%clk 0:00:12]}  Ra7 {[%clk 0:00:08]} 63. Re7+ {[%clk 0:00:11]}  Rxe7 {[%clk 0:00:08]} 64. Kxe7 {[%clk 0:00:12]}  Kh8 {[%clk 0:00:09]} 65. f6 {[%clk 0:00:13]}  Kg8 {[%clk 0:00:09]} 66. f7+ {[%clk 0:00:13]}  Kh8 {[%clk 0:00:10]} 67. f8=Q+ {[%clk 0:00:12]}  Kh7 {[%clk 0:00:11]} 68. Qf7+ {[%clk 0:00:11]}  Kh8 {[%clk 0:00:12]} 69. Qf6+ {[%clk 0:00:12]}  Kh7 {[%clk 0:00:12]} 70. g6+ {[%clk 0:00:12]}  Kg8 {[%clk 0:00:13]} 71. Qf7+ {[%clk 0:00:12]}  Kh8 {[%clk 0:00:13]} 72. Qh7# {[%clk 0:00:13]} 1-0


[Site "https://www.chess.com"]

[Event "Titled Tuesday Blitz April 18 Late 2023"]
[White "Marczuk, Dominik"]
[Black "Vargas Rodriguez, Wilver"]
[WhiteFideId "1111264"]
[BlackFideId "3509672"]
[WhiteElo "2174"]
[BlackElo "2224"]
[Result "1-0"]
[Round "08"]
[TimeControl "180+2"]
[Date "2023.04.18"]
[WhiteClock "0:01:15"]
[BlackClock "0:00:02"]

1. e4 {[%clk 0:02:52]}  c5 {[%clk 0:02:59]} 2. Nf3 {[%clk 0:02:51]}  d6 {[%clk 0:02:59]} 3. d4 {[%clk 0:02:52]}  cxd4 {[%clk 0:03:00]} 4. Nxd4 {[%clk 0:02:52]}  Nf6 {[%clk 0:03:00]} 5. Nc3 {[%clk 0:02:53]}  a6 {[%clk 0:03:01]} 6. f3 {[%clk 0:02:54]}  e5 {[%clk 0:02:59]} 7. Nb3 {[%clk 0:02:54]}  Be7 {[%clk 0:02:58]} 8. Be3 {[%clk 0:02:54]}  Be6 {[%clk 0:02:56]} 9. Qd2 {[%clk 0:02:54]}  h5 {[%clk 0:02:55]} 10. Nd5 {[%clk 0:02:49]}  Nxd5 {[%clk 0:02:49]} 11. exd5 {[%clk 0:02:50]}  Bf5 {[%clk 0:02:50]} 12. Be2 {[%clk 0:02:27]}  Nd7 {[%clk 0:02:41]} 13. O-O {[%clk 0:02:25]}  Rc8 {[%clk 0:02:19]} 14. c4 {[%clk 0:02:11]}  O-O {[%clk 0:01:46]} 15. Na5 {[%clk 0:02:08]}  Rc7 {[%clk 0:01:03]} 16. b4 {[%clk 0:02:05]}  Bf6 {[%clk 0:00:41]} 17. Rac1 {[%clk 0:02:03]}  e4 {[%clk 0:00:21]} 18. f4 {[%clk 0:01:59]}  Bg4 {[%clk 0:00:19]} 19. Bxg4 {[%clk 0:01:52]}  hxg4 {[%clk 0:00:20]} 20. c5 {[%clk 0:01:50]}  dxc5 {[%clk 0:00:20]} 21. bxc5 {[%clk 0:01:51]}  Qb8 {[%clk 0:00:14]} 22. c6 {[%clk 0:01:24]}  bxc6 {[%clk 0:00:13]} 23. dxc6 {[%clk 0:01:25]}  Nb6 {[%clk 0:00:04]} 24. Rb1 {[%clk 0:01:25]}  Nc4 {[%clk 0:00:02]} 25. Rxb8 {[%clk 0:01:14]}  Nxd2 {[%clk 0:00:02]} 26. Rxf8+ {[%clk 0:01:15]} 1-0


[Site "https://www.chess.com"]

[Event "Titled Tuesday Blitz April 18 Late 2023"]
[White "Allam, Yara"]
[Black "Vaglio Munoz, Jaime"]
[WhiteFideId "10615709"]
[BlackFideId "6500145"]
[WhiteElo "1758"]
[BlackElo "2199"]
[Result "1/2-1/2"]
[Round "08"]
[TimeControl "180+2"]
[Date "2023.04.18"]
[WhiteClock "0:00:56"]
[BlackClock "0:00:29"]

1. e4 {[%clk 0:03:00]}  e6 {[%clk 0:02:58]} 2. d4 {[%clk 0:03:01]}  d5 {[%clk 0:02:58]} 3. Nc3 {[%clk 0:03:01]}  dxe4 {[%clk 0:02:57]} 4. Nxe4 {[%clk 0:03:01]}  Nf6 {[%clk 0:02:58]} 5. Nxf6+ {[%clk 0:03:01]}  Qxf6 {[%clk 0:02:59]} 6. c3 {[%clk 0:03:02]}  h6 {[%clk 0:02:59]} 7. Nf3 {[%clk 0:03:02]}  Nc6 {[%clk 0:02:59]} 8. Bd3 {[%clk 0:03:02]}  Bd6 {[%clk 0:02:59]} 9. O-O {[%clk 0:03:02]}  O-O {[%clk 0:03:00]} 10. Bc2 {[%clk 0:03:00]}  e5 {[%clk 0:02:59]} 11. Qd3 {[%clk 0:02:59]}  g6 {[%clk 0:02:59]} 12. Bxh6 {[%clk 0:02:57]}  Re8 {[%clk 0:02:59]} 13. Bg5 {[%clk 0:02:56]}  Qh8 {[%clk 0:02:58]} 14. Rfe1 {[%clk 0:02:51]}  Bf5 {[%clk 0:02:54]} 15. Qd2 {[%clk 0:02:47]}  e4 {[%clk 0:02:54]} 16. Nh4 {[%clk 0:02:32]}  Qh5 {[%clk 0:02:38]} 17. g3 {[%clk 0:02:23]}  Kg7 {[%clk 0:02:19]} 18. Nxf5+ {[%clk 0:02:09]}  gxf5 {[%clk 0:02:20]} 19. h4 {[%clk 0:02:03]}  f6 {[%clk 0:02:10]} 20. Bf4 {[%clk 0:02:03]}  Qg4 {[%clk 0:02:03]} 21. Bxd6 {[%clk 0:01:49]}  cxd6 {[%clk 0:02:04]} 22. Bd1 {[%clk 0:01:50]}  Qg6 {[%clk 0:02:03]} 23. Qf4 {[%clk 0:01:48]}  d5 {[%clk 0:01:57]} 24. h5 {[%clk 0:01:38]}  Qg5 {[%clk 0:01:55]} 25. Qxg5+ {[%clk 0:01:26]}  fxg5 {[%clk 0:01:56]} 26. Kg2 {[%clk 0:01:26]}  f4 {[%clk 0:01:54]} 27. g4 {[%clk 0:01:25]}  b5 {[%clk 0:01:47]} 28. a4 {[%clk 0:01:24]}  a6 {[%clk 0:01:46]} 29. Bb3 {[%clk 0:01:24]}  Ne7 {[%clk 0:01:41]} 30. axb5 {[%clk 0:01:22]}  axb5 {[%clk 0:01:40]} 31. Rh1 {[%clk 0:01:13]}  Kh6 {[%clk 0:01:32]} 32. Rhe1 {[%clk 0:01:07]}  Kg7 {[%clk 0:01:18]} 33. Rh1 {[%clk 0:01:07]}  Kh7 {[%clk 0:00:54]} 34. Rhe1 {[%clk 0:00:59]}  Red8 {[%clk 0:00:53]} 35. Rh1 {[%clk 0:00:58]}  Kh6 {[%clk 0:00:52]} 36. Rhe1 {[%clk 0:00:57]}  Kg7 {[%clk 0:00:49]} 37. Rh1 {[%clk 0:00:57]}  Kf6 {[%clk 0:00:48]} 38. Rhe1 {[%clk 0:00:57]}  Kg7 {[%clk 0:00:40]} 39. Rh1 {[%clk 0:00:57]}  Kh6 {[%clk 0:00:30]} 40. Rhe1 {[%clk 0:00:56]}  Kg7 {[%clk 0:00:29]} 1/2-1/2


[Site "https://www.chess.com"]